[Event "European Rapid Championship 2021"]
[Site "Katowice"]
[Date "2021.12.18"]
[Round "1.7"]
[White "Papasimakopoulos, Alexandros"]
[Black "Buchta, Agnieszka"]
[Result "1-0"]
[ECO "E32"]
[WhiteElo "2274"]
[BlackElo "1919"]
[Annotator "NA RC"]
[PlyCount "67"]
[EventDate "2021.12.18"]
[EventType "swiss"]
[EventCountry "POL"]
[SourceTitle "playchess.com"]
[Source "ChessBase"]
[SourceQuality "1"]
[TimeControl "900+10"]

1. d4 {[%emt 0:00:04]} Nf6 {[%emt 0:00:04]} 2. c4 {[%emt 0:00:02]} e6 {[%emt 0:
00:04]} 3. Nc3 {[%emt 0:00:03]} Bb4 {[%emt 0:00:03]} 4. Qc2 {[%emt 0:00:02]}
Bxc3+ {[%emt 0:00:23]} 5. Qxc3 {[%emt 0:00:03]} Ne4 {[%emt 0:00:04]} 6. Qc2 {
[%emt 0:00:03]} f5 {[%emt 0:00:09]} 7. Nh3 {[%emt 0:00:04]} b6 {[%emt 0:00:41]}
8. f3 {[%emt 0:00:05]} Nf6 {[%emt 0:00:39]} 9. e3 {[%emt 0:00:05]} Bb7 {
[%emt 0:00:17]} 10. Be2 {[%emt 0:00:03]} d6 {[%emt 0:00:11]} 11. O-O {[%emt 0:
00:06]} Nbd7 {[%emt 0:00:28]} 12. Bd2 {[%emt 0:00:52]} Qe7 {[%emt 0:00:53]} 13.
b4 {[%emt 0:00:10]} h6 {[%emt 0:04:45]} 14. Nf4 {[%emt 0:00:31]} Kf7 {[%emt 0:
01:03]} 15. d5 {[%emt 0:00:47]} e5 {[%emt 0:03:52]} 16. Ne6 {[%emt 0:00:04]} g6
{[%emt 0:00:37]} 17. e4 {[%emt 0:01:04]} f4 {[%emt 0:00:24]} 18. Nxc7 {[%emt 0:
00:09]} Rac8 {[%emt 0:00:06]} 19. Nb5 {[%emt 0:00:07]} a6 {[%emt 0:00:38]} 20.
Na7 {[%emt 0:01:00]} Rc7 {[%emt 0:00:58]} 21. Qa4 {[%emt 0:00:43]} Nb8 {
[%emt 0:01:10]} 22. b5 {[%emt 0:00:46]} Bxd5 {[%emt 0:00:57]} 23. cxd5 {
[%emt 0:00:04]} Rxa7 {[%emt 0:00:01]} 24. bxa6 {[%emt 0:00:03]} Rc8 {[%emt 0:
00:07]} 25. Rfc1 {[%emt 0:00:03]} Rcc7 {[%emt 0:00:04]} 26. Rxc7 {[%emt 0:00:
04]} Qxc7 {[%emt 0:00:03]} 27. Rc1 {[%emt 0:00:02]} Qd8 {[%emt 0:00:07]} 28.
Bb4 {[%emt 0:00:04]} Ke7 {[%emt 0:00:07]} 29. Qa3 {[%emt 0:00:18]} Ne8 {
[%emt 0:00:16]} 30. Qc3 {[%emt 0:00:21]} Nc7 {[%emt 0:00:14]} 31. Qxe5+ {
[%emt 0:00:06]} Kf7 {[%emt 0:00:37]} 32. Qxf4+ {[%emt 0:00:03]} Kg7 {[%emt 0:
00:05]} 33. Bxd6 {[%emt 0:00:05]} Nbxa6 {[%emt 0:00:14]} 34. Be5+ {[%emt 0:00:
04]} 1-0

[Event "European Rapid Championship 2021"]
[Site "Katowice"]
[Date "2021.12.18"]
[Round "1.9"]
[White "Druckenthaner, Andreas"]
[Black "Kotowicz, Kamil"]
[Result "1-0"]
[ECO "B10"]
[WhiteElo "2291"]
[BlackElo "1765"]
[Annotator "NA RC"]
[PlyCount "53"]
[EventDate "2021.12.18"]
[EventType "swiss"]
[EventCountry "POL"]
[SourceTitle "playchess.com"]
[Source "ChessBase"]
[SourceQuality "1"]
[TimeControl "900+10"]

1. e4 {[%emt 0:00:03]} c6 {[%emt 0:00:04]} 2. d3 {[%emt 0:00:04]} d5 {[%emt 0:
00:22]} 3. Qe2 {[%emt 0:00:02]} e6 {[%emt 0:00:22]} 4. Nf3 {[%emt 0:00:04]} Nf6
{[%emt 0:00:04]} 5. g3 {[%emt 0:00:04]} Be7 {[%emt 0:00:07]} 6. Bg2 {[%emt 0:
00:02]} O-O {[%emt 0:00:05]} 7. O-O {[%emt 0:00:05]} b6 {[%emt 0:00:08]} 8. e5
{[%emt 0:00:04]} Nfd7 {[%emt 0:00:03]} 9. Bf4 {[%emt 0:00:13]} c5 {[%emt 0:00:
43]} 10. c4 {[%emt 0:00:04]} Bb7 {[%emt 0:02:22]} 11. Nc3 {[%emt 0:00:03]} dxc4
{[%emt 0:02:37]} 12. dxc4 {[%emt 0:00:05]} a6 {[%emt 0:00:10]} 13. Rad1 {
[%emt 0:00:27]} Qc8 {[%emt 0:00:35]} 14. Bg5 {[%emt 0:02:39]} Bxg5 {[%emt 0:01:
11]} 15. Nxg5 {[%emt 0:00:02]} Bxg2 {[%emt 0:00:05]} 16. Kxg2 {[%emt 0:00:02]}
h6 {[%emt 0:00:20]} 17. Qe4 {[%emt 0:01:25]} Qc6 {[%emt 0:00:49]} 18. Nd5 {
[%emt 0:00:16]} f5 {[%emt 0:00:55]} 19. exf6 {[%emt 0:00:37]} Nxf6 {[%emt 0:00:
10]} 20. Ne7+ {[%emt 0:00:37]} Kh8 {[%emt 0:00:04]} 21. Ng6+ {[%emt 0:00:18]}
Kg8 {[%emt 0:00:06]} 22. Ne7+ {[%emt 0:00:56]} Kh8 {[%emt 0:00:04]} 23. Nf7+ {
[%emt 0:00:38]} Rxf7 {[%emt 0:00:25]} 24. Rd8+ {[%emt 0:00:02]} Qe8 {[%emt 0:
00:49]} 25. Rxe8+ {[%emt 0:00:12]} Nxe8 {[%emt 0:00:02]} 26. Ng6+ {[%emt 0:00:
07]} Kg8 {[%emt 0:00:02]} 27. Qxa8 {[%emt 0:00:10]} 1-0

[Event "European Rapid Championship 2021"]
[Site "Katowice"]
[Date "2021.12.18"]
[Round "1.11"]
[White "Szpar, Milosz"]
[Black "Zajac, Karol"]
[Result "1-0"]
[ECO "B30"]
[WhiteElo "2315"]
[BlackElo "1606"]
[Annotator "NA RC"]
[PlyCount "65"]
[EventDate "2021.12.18"]
[EventType "swiss"]
[EventCountry "POL"]
[SourceTitle "playchess.com"]
[Source "ChessBase"]
[SourceQuality "1"]
[TimeControl "900+10"]

1. e4 {[%emt 0:00:02]} c5 {[%emt 0:00:06]} 2. Nf3 {[%emt 0:00:03]} Nc6 {
[%emt 0:00:03]} 3. Bb5 {[%emt 0:00:04]} Nf6 {[%emt 0:00:14]} 4. Nc3 {[%emt 0:
00:29]} d6 {[%emt 0:00:52]} 5. d4 {[%emt 0:01:04]} cxd4 {[%emt 0:00:13]} 6.
Qxd4 {[%emt 0:00:14]} Bd7 {[%emt 0:00:40]} 7. Bxc6 {[%emt 0:00:11]} Bxc6 {
[%emt 0:00:20]} 8. Bg5 {[%emt 0:00:06]} e6 {[%emt 0:01:40]} 9. O-O-O {[%emt 0:
00:26]} Be7 {[%emt 0:00:36]} 10. Qd3 {[%emt 0:00:39]} Qa5 {[%emt 0:02:35]} 11.
h4 {[%emt 0:00:23]} Rc8 {[%emt 0:01:35]} 12. Nd4 {[%emt 0:01:09]} a6 {[%emt 0:
00:50]} 13. f4 {[%emt 0:01:55]} h6 {[%emt 0:00:23]} 14. Bxf6 {[%emt 0:00:45]}
gxf6 {[%emt 0:00:10]} 15. f5 {[%emt 0:00:38]} e5 {[%emt 0:02:13]} 16. Nb3 {
[%emt 0:01:14]} Qc7 {[%emt 0:00:27]} 17. g4 {[%emt 0:00:19]} h5 {[%emt 0:01:08]
} 18. gxh5 {[%emt 0:00:39]} b5 {[%emt 0:00:18]} 19. a3 {[%emt 0:00:12]} Qb7 {
[%emt 0:00:31]} 20. Na5 {[%emt 0:00:26]} Qb6 {[%emt 0:00:08]} 21. Nxc6 {
[%emt 0:00:08]} Rxc6 {[%emt 0:00:02]} 22. Qg3 {[%emt 0:00:51]} Bf8 {[%emt 0:00:
58]} 23. Nd5 {[%emt 0:00:13]} Qc5 {[%emt 0:00:31]} 24. Nxf6+ {[%emt 0:00:25]}
Kd8 {[%emt 0:00:17]} 25. Qd3 {[%emt 0:01:16]} b4 {[%emt 0:00:33]} 26. a4 {
[%emt 0:00:31]} b3 {[%emt 0:00:46]} 27. Qxb3 {[%emt 0:00:22]} Rb6 {[%emt 0:00:
07]} 28. Qxf7 {[%emt 0:00:57]} Bh6+ {[%emt 0:00:25]} 29. Kb1 {[%emt 0:00:03]}
Rh7 {[%emt 0:00:39]} 30. Qg8+ {[%emt 0:00:14]} Kc7 {[%emt 0:00:24]} 31. Nd5+ {
[%emt 0:00:08]} Kc6 {[%emt 0:00:16]} 32. Qc8+ {[%emt 0:00:05]} Rc7 {[%emt 0:00:
07]} 33. Ne7# 1-0

[Event "European Rapid Championship 2021"]
[Site "Katowice"]
[Date "2021.12.18"]
[Round "1.13"]
[White "Kyc, Jerzy"]
[Black "Zarzecki, Dymitr"]
[Result "1-0"]
[ECO "B44"]
[WhiteElo "2308"]
[BlackElo "1579"]
[Annotator "NA RC"]
[PlyCount "101"]
[EventDate "2021.12.18"]
[EventType "swiss"]
[EventCountry "POL"]
[SourceTitle "playchess.com"]
[Source "ChessBase"]
[SourceQuality "1"]
[TimeControl "900+10"]

1. e4 {[%emt 0:00:01]} c5 {[%emt 0:00:26]} 2. Nf3 {[%emt 0:00:02]} e6 {[%emt 0:
00:01]} 3. d4 {[%emt 0:00:01]} cxd4 {[%emt 0:00:02]} 4. Nxd4 {[%emt 0:00:02]}
Nc6 {[%emt 0:00:01]} 5. Nb5 {[%emt 0:00:01]} a6 {[%emt 0:04:34]} 6. Nd6+ {
[%emt 0:00:03]} Bxd6 {[%emt 0:00:02]} 7. Qxd6 {[%emt 0:00:01]} Qe7 {[%emt 0:00:
07]} 8. Qc7 {[%emt 0:00:27]} d5 {[%emt 0:02:25]} 9. Qxe7+ {[%emt 0:00:04]}
Ngxe7 {[%emt 0:00:02]} 10. Nc3 {[%emt 0:00:14]} Nb4 {[%emt 0:05:08]} 11. Bd3 {
[%emt 0:00:05]} Nxd3+ {[%emt 0:01:34]} 12. cxd3 {[%emt 0:00:01]} d4 {[%emt 0:
00:46]} 13. Na4 {[%emt 0:00:19]} Bd7 {[%emt 0:01:18]} 14. Nb6 {[%emt 0:00:09]}
Rd8 {[%emt 0:00:02]} 15. Bf4 {[%emt 0:00:07]} Nc8 {[%emt 0:00:29]} 16. Nc4 {
[%emt 0:00:15]} b5 {[%emt 0:00:23]} 17. Na5 {[%emt 0:00:09]} O-O {[%emt 0:00:
25]} 18. Bc7 {[%emt 0:00:28]} Rde8 {[%emt 0:00:06]} 19. Be5 {[%emt 0:00:17]} f5
{[%emt 0:00:13]} 20. Bxd4 {[%emt 0:00:07]} fxe4 {[%emt 0:00:01]} 21. dxe4 {
[%emt 0:00:02]} e5 {[%emt 0:00:19]} 22. Bc5 {[%emt 0:00:05]} Rf4 {[%emt 0:00:
10]} 23. f3 {[%emt 0:00:03]} Ne7 {[%emt 0:00:09]} 24. Bxe7 {[%emt 0:00:10]}
Rxe7 {[%emt 0:00:01]} 25. Rc1 {[%emt 0:00:10]} Be6 {[%emt 0:00:21]} 26. Ke2 {
[%emt 0:00:09]} g5 {[%emt 0:00:09]} 27. Rc5 {[%emt 0:00:19]} Bd7 {[%emt 0:00:
12]} 28. Rd1 {[%emt 0:00:16]} b4 {[%emt 0:00:04]} 29. Rdd5 {[%emt 0:00:13]}
Bb5+ {[%emt 0:00:02]} 30. Ke3 {[%emt 0:00:03]} Bf1 {[%emt 0:00:24]} 31. Rxe5 {
[%emt 0:00:07]} Rxe5 {[%emt 0:00:12]} 32. Rxe5 {[%emt 0:00:04]} h6 {[%emt 0:00:
03]} 33. g3 {[%emt 0:00:08]} Rf6 {[%emt 0:00:14]} 34. Nb7 {[%emt 0:00:23]} Rc6
{[%emt 0:00:12]} 35. Nc5 {[%emt 0:00:12]} a5 {[%emt 0:00:08]} 36. f4 {[%emt 0:
00:10]} gxf4+ {[%emt 0:00:05]} 37. gxf4 {[%emt 0:00:02]} Bc4 {[%emt 0:00:12]}
38. a3 {[%emt 0:00:04]} Bf7 {[%emt 0:00:13]} 39. f5 {[%emt 0:00:17]} bxa3 {
[%emt 0:00:10]} 40. bxa3 {[%emt 0:00:01]} h5 {[%emt 0:00:05]} 41. Kf4 {[%emt 0:
00:09]} Rb6 {[%emt 0:00:13]} 42. Nd7 {[%emt 0:00:06]} Rb2 {[%emt 0:00:14]} 43.
Rxa5 {[%emt 0:00:07]} Rxh2 {[%emt 0:00:06]} 44. Ne5 {[%emt 0:00:02]} Bb3 {
[%emt 0:00:15]} 45. f6 {[%emt 0:00:08]} Rf2+ {[%emt 0:00:02]} 46. Kg5 {[%emt 0:
00:03]} h4 {[%emt 0:00:10]} 47. Ra8+ {[%emt 0:00:02]} Kh7 {[%emt 0:00:09]} 48.
Ra7+ {[%emt 0:00:00]} Kg8 {[%emt 0:00:11]} 49. Ng6 {[%emt 0:00:10]} Rg2+ {
[%emt 0:00:19]} 50. Kh6 {[%emt 0:00:03]} h3 {[%emt 0:00:08]} 51. Rg7# {[%emt 0:
00:03]} 1-0

[Event "European Rapid Championship 2021"]
[Site "Katowice"]
[Date "2021.12.18"]
[Round "1.15"]
[White "Lubczynski, Rafal"]
[Black "Kazmerika, Anna"]
[Result "1-0"]
[ECO "A06"]
[WhiteElo "2289"]
[BlackElo "1825"]
[Annotator "NA RC"]
[PlyCount "47"]
[EventDate "2021.12.18"]
[EventType "swiss"]
[EventCountry "POL"]
[SourceTitle "playchess.com"]
[Source "ChessBase"]
[SourceQuality "1"]
[TimeControl "900+10"]

1. Nf3 {[%emt 0:00:03]} d5 {[%emt 0:00:02]} 2. c4 {[%emt 0:00:01]} c6 {[%emt 0:
00:33]} 3. g3 {[%emt 0:00:01]} Nf6 {[%emt 0:00:01]} 4. Bg2 {[%emt 0:00:02]} Bg4
{[%emt 0:00:04]} 5. b3 {[%emt 0:00:12]} Nbd7 {[%emt 0:00:07]} 6. Bb2 {[%emt 0:
00:02]} e6 {[%emt 0:00:25]} 7. O-O {[%emt 0:00:02]} Bd6 {[%emt 0:00:05]} 8. d3
{[%emt 0:00:10]} O-O {[%emt 0:00:10]} 9. Nbd2 {[%emt 0:00:03]} e5 {[%emt 0:00:
08]} 10. h3 {[%emt 0:00:28]} Bh5 {[%emt 0:00:14]} 11. Nh4 {[%emt 0:00:15]} Re8
{[%emt 0:00:33]} 12. Nf5 {[%emt 0:02:36]} Bf8 {[%emt 0:00:09]} 13. Nf3 {
[%emt 0:00:02]} e4 {[%emt 0:02:13]} 14. dxe4 {[%emt 0:00:09]} Nxe4 {[%emt 0:00:
04]} 15. cxd5 {[%emt 0:00:40]} cxd5 {[%emt 0:01:56]} 16. Qxd5 {[%emt 0:00:19]}
Ndc5 {[%emt 0:00:33]} 17. Nh6+ {[%emt 0:00:33]} gxh6 {[%emt 0:00:40]} 18. Qxh5
{[%emt 0:00:02]} Ne6 {[%emt 0:00:58]} 19. Ne5 {[%emt 0:00:41]} N4g5 {[%emt 0:
01:15]} 20. h4 {[%emt 0:02:00]} Ng7 {[%emt 0:01:27]} 21. Qxh6 {[%emt 0:00:24]}
N5e6 {[%emt 0:00:46]} 22. Rfd1 {[%emt 0:00:28]} Qb6 {[%emt 0:00:29]} 23. Nd7 {
[%emt 0:00:10]} Qa6 {[%emt 0:00:41]} 24. Nf6+ {[%emt 0:00:02]} 1-0

[Event "European Rapid Championship 2021"]
[Site "Katowice"]
[Date "2021.12.18"]
[Round "1.17"]
[White "Budrewicz, Krzysztof"]
[Black "Hlavina, Matous"]
[Result "1/2-1/2"]
[ECO "D90"]
[WhiteElo "2281"]
[BlackElo "2090"]
[Annotator "NA RC"]
[PlyCount "57"]
[EventDate "2021.12.18"]
[EventType "swiss"]
[EventCountry "POL"]
[SourceTitle "playchess.com"]
[Source "ChessBase"]
[SourceQuality "1"]
[TimeControl "900+10"]

1. d4 {[%emt 0:00:05]} Nf6 {[%emt 0:00:00]} 2. c4 {[%emt 0:00:04]} g6 {[%emt 0:
00:02]} 3. Nc3 {[%emt 0:00:06]} d5 {[%emt 0:00:01]} 4. Nf3 {[%emt 0:00:16]} Bg7
{[%emt 0:00:10]} 5. h4 {[%emt 0:00:18]} O-O {[%emt 0:00:20]} 6. cxd5 {[%emt 0:
00:42]} Nxd5 {[%emt 0:00:11]} 7. h5 {[%emt 0:00:04]} c5 {[%emt 0:00:57]} 8.
hxg6 {[%emt 0:02:54]} hxg6 {[%emt 0:00:46]} 9. Bh6 {[%emt 0:00:53]} Nxc3 {
[%emt 0:00:52]} 10. bxc3 {[%emt 0:00:07]} Bxh6 {[%emt 0:00:14]} 11. Rxh6 {
[%emt 0:00:02]} Kg7 {[%emt 0:00:01]} 12. Rh4 {[%emt 0:00:27]} cxd4 {[%emt 0:00:
26]} 13. Qd2 {[%emt 0:00:43]} Rh8 {[%emt 0:01:38]} 14. Rxh8 {[%emt 0:00:29]}
Qxh8 {[%emt 0:00:01]} 15. cxd4 {[%emt 0:01:22]} Qh5 {[%emt 0:00:34]} 16. Qc3 {
[%emt 0:00:20]} Nd7 {[%emt 0:01:24]} 17. e4 {[%emt 0:00:13]} Nf6 {[%emt 0:00:
36]} 18. d5 {[%emt 0:03:29]} Bg4 {[%emt 0:00:32]} 19. Nd4 {[%emt 0:00:27]} Rc8
{[%emt 0:00:20]} 20. Qb2 {[%emt 0:00:08]} Kh7 {[%emt 0:00:37]} 21. f3 {[%emt 0:
00:02]} Bd7 {[%emt 0:01:42]} 22. Kf2 {[%emt 0:00:47]} Qh2 {[%emt 0:01:23]} 23.
Rc1 {[%emt 0:00:37]} Qf4 {[%emt 0:00:28]} 24. Rxc8 {[%emt 0:02:50]} Nxe4+ {
[%emt 0:01:23]} 25. Kg1 {[%emt 0:00:04]} Qe3+ {[%emt 0:00:22]} 26. Kh2 {
[%emt 0:00:05]} Qh6+ {[%emt 0:01:21]} 27. Kg1 {[%emt 0:00:02]} Qe3+ {[%emt 0:
00:13]} 28. Kh2 {[%emt 0:00:01]} Qh6+ {[%emt 0:00:02]} 29. Kg1 {[%emt 0:00:01]}
1/2-1/2

[Event "European Rapid Championship 2021"]
[Site "Katowice"]
[Date "2021.12.18"]
[Round "1.18"]
[White "Swiatek, Mateusz"]
[Black "Jagodzinski, Piotr"]
[Result "0-1"]
[ECO "B15"]
[WhiteElo "1569"]
[BlackElo "2145"]
[Annotator "RC"]
[PlyCount "102"]
[EventDate "2021.12.18"]
[EventType "swiss"]
[EventCountry "POL"]
[SourceTitle "playchess.com"]
[Source "ChessBase"]
[SourceQuality "1"]
[TimeControl "900+10"]

1. e4 {[%emt 0:00:03]} c6 {[%emt 0:00:02]} 2. d4 {[%emt 0:00:09]} d5 {[%emt 0:
00:01]} 3. Nc3 {[%emt 0:00:03]} dxe4 {[%emt 0:00:41]} 4. Nxe4 {[%emt 0:00:03]}
Nf6 {[%emt 0:00:01]} 5. Ng3 {[%emt 0:00:24]} e5 {[%emt 0:01:59]} 6. Be3 {
[%emt 0:01:47]} Ng4 {[%emt 0:01:00]} 7. dxe5 {[%emt 0:00:55]} Qa5+ {[%emt 0:02:
51]} 8. Bd2 {[%emt 0:00:26]} Qxe5+ {[%emt 0:00:11]} 9. Qe2 {[%emt 0:00:03]} Bc5
{[%emt 0:00:53]} 10. Qxe5+ {[%emt 0:00:18]} Nxe5 {[%emt 0:00:02]} 11. f3 {
[%emt 0:00:24]} O-O {[%emt 0:01:09]} 12. O-O-O {[%emt 0:00:05]} Be6 {[%emt 0:
00:08]} 13. Bc3 {[%emt 0:00:37]} Nbd7 {[%emt 0:01:46]} 14. Ne4 {[%emt 0:00:21]}
Be7 {[%emt 0:00:26]} 15. b3 {[%emt 0:00:41]} a5 {[%emt 0:00:03]} 16. a4 {
[%emt 0:00:10]} Bd5 {[%emt 0:00:48]} 17. Nf2 {[%emt 0:00:29]} Rfe8 {[%emt 0:00:
07]} 18. Ne2 {[%emt 0:00:18]} Bc5 {[%emt 0:01:50]} 19. Nd3 {[%emt 0:00:12]}
Be3+ {[%emt 0:00:07]} 20. Kb2 {[%emt 0:00:32]} Ng6 {[%emt 0:00:01]} 21. Bd4 {
[%emt 0:01:24]} h5 {[%emt 0:00:03]} 22. Bxe3 {[%emt 0:00:41]} Rxe3 {[%emt 0:00:
02]} 23. Ndf4 {[%emt 0:00:13]} Nxf4 {[%emt 0:00:17]} 24. Nxf4 {[%emt 0:00:01]}
Nf6 {[%emt 0:00:01]} 25. Bd3 {[%emt 0:01:23]} g5 {[%emt 0:00:25]} 26. Nxd5 {
[%emt 0:00:30]} Nxd5 {[%emt 0:00:06]} 27. Be4 {[%emt 0:00:06]} Nf6 {[%emt 0:00:
23]} 28. Rhe1 {[%emt 0:01:04]} Rxe1 {[%emt 0:00:04]} 29. Rxe1 {[%emt 0:00:02]}
Re8 {[%emt 0:00:08]} 30. Kc3 {[%emt 0:00:14]} Nxe4+ {[%emt 0:00:18]} 31. Rxe4 {
[%emt 0:00:09]} Rxe4 {[%emt 0:00:01]} 32. fxe4 {[%emt 0:00:01]} Kg7 {[%emt 0:
00:42]} 33. Kd4 {[%emt 0:00:01]} Kf6 {[%emt 0:00:01]} 34. h3 {[%emt 0:00:12]}
h4 {[%emt 0:00:30]} 35. c3 {[%emt 0:01:03]} Ke6 {[%emt 0:00:10]} 36. Kd3 {
[%emt 0:01:02]} Kd6 {[%emt 0:00:18]} 37. Kd4 {[%emt 0:00:05]} b6 {[%emt 0:01:
44]} 38. Kd3 {[%emt 0:00:27]} Kc5 {[%emt 0:00:23]} 39. Kd2 {[%emt 0:00:36]} b5
{[%emt 0:00:05]} 40. Kd3 {[%emt 0:02:45]} bxa4 {[%emt 0:00:23]} 41. bxa4 {
[%emt 0:00:02]} f6 {[%emt 0:00:01]} 42. Kd2 {[%emt 0:00:51]} Kc4 {[%emt 0:00:
01]} 43. Kc2 {[%emt 0:00:01]} c5 {[%emt 0:00:00]} 44. Kd2 {[%emt 0:00:12]} Kb3
{[%emt 0:00:02]} 45. Kd3 {[%emt 0:00:02]} Kxa4 {[%emt 0:00:34]} 46. Kc4 {
[%emt 0:00:01]} Ka3 {[%emt 0:00:04]} 47. Kxc5 {[%emt 0:00:03]} Kb3 {[%emt 0:00:
12]} 48. c4 {[%emt 0:00:06]} a4 {[%emt 0:00:00]} 49. Kb5 {[%emt 0:00:44]} a3 {
[%emt 0:00:02]} 50. c5 {[%emt 0:00:01]} a2 {[%emt 0:00:01]} 51. c6 {[%emt 0:00:
06]} a1=Q {[%emt 0:00:02]} 0-1

[Event "European Rapid Championship 2021"]
[Site "Katowice"]
[Date "2021.12.18"]
[Round "1.21"]
[White "Kowalski, Igor"]
[Black "Lechowski, Witold"]
[Result "1-0"]
[ECO "A48"]
[WhiteElo "2263"]
[BlackElo "1688"]
[Annotator "NA RC"]
[PlyCount "43"]
[EventDate "2021.12.18"]
[EventType "swiss"]
[EventCountry "POL"]
[SourceTitle "playchess.com"]
[Source "ChessBase"]
[SourceQuality "1"]
[TimeControl "900+10"]

1. d4 {[%emt 0:00:01]} Nf6 {[%emt 0:00:11]} 2. Nf3 {[%emt 0:00:02]} g6 {
[%emt 0:00:18]} 3. Nc3 {[%emt 0:00:03]} d5 {[%emt 0:00:24]} 4. Bf4 {[%emt 0:00:
03]} Bg7 {[%emt 0:00:40]} 5. e3 {[%emt 0:00:04]} O-O {[%emt 0:00:22]} 6. h4 {
[%emt 0:00:02]} h5 {[%emt 0:00:46]} 7. Ne5 {[%emt 0:00:04]} Nbd7 {[%emt 0:00:
34]} 8. Be2 {[%emt 0:00:17]} Nb6 {[%emt 0:00:41]} 9. g4 {[%emt 0:00:14]} Bxg4 {
[%emt 0:00:46]} 10. Nxg4 {[%emt 0:00:05]} Nxg4 {[%emt 0:00:06]} 11. Bxg4 {
[%emt 0:00:02]} hxg4 {[%emt 0:00:02]} 12. Qxg4 {[%emt 0:00:07]} Qc8 {[%emt 0:
00:30]} 13. Qg3 {[%emt 0:00:06]} c6 {[%emt 0:00:34]} 14. h5 {[%emt 0:00:07]}
Qf5 {[%emt 0:00:57]} 15. O-O-O {[%emt 0:00:17]} Nd7 {[%emt 0:00:32]} 16. Rdg1 {
[%emt 0:04:12]} e5 {[%emt 0:01:10]} 17. dxe5 {[%emt 0:00:13]} Nxe5 {[%emt 0:00:
07]} 18. hxg6 {[%emt 0:00:33]} Nxg6 {[%emt 0:00:48]} 19. Qh2 {[%emt 0:01:56]}
Rfd8 {[%emt 0:00:57]} 20. Bd6 {[%emt 0:05:33]} Nh4 {[%emt 0:04:28]} 21. Qxh4 {
[%emt 0:00:09]} Rxd6 {[%emt 0:00:04]} 22. Qh8# {[%emt 0:00:04]} 1-0

[Event "European Rapid Championship 2021"]
[Site "Katowice"]
[Date "2021.12.18"]
[Round "1.23"]
[White "Kuegel, Tobias"]
[Black "Musial, Igor"]
[Result "1-0"]
[ECO "B20"]
[WhiteElo "2242"]
[BlackElo "1796"]
[Annotator "RC"]
[PlyCount "105"]
[EventDate "2021.12.18"]
[EventType "swiss"]
[EventCountry "POL"]
[SourceTitle "playchess.com"]
[Source "ChessBase"]
[SourceQuality "1"]
[TimeControl "900+10"]

1. e4 {[%emt 0:00:03]} c5 {[%emt 0:00:01]} 2. c4 {[%emt 0:00:04]} Nc6 {[%emt 0:
00:02]} 3. Ne2 {[%emt 0:00:03]} e5 {[%emt 0:00:18]} 4. d3 {[%emt 0:00:15]} d6 {
[%emt 0:00:01]} 5. Nbc3 {[%emt 0:00:06]} g6 {[%emt 0:00:12]} 6. g3 {[%emt 0:00:
14]} Bg7 {[%emt 0:00:14]} 7. Bg2 {[%emt 0:00:06]} Nge7 {[%emt 0:00:01]} 8. O-O
{[%emt 0:00:03]} O-O {[%emt 0:00:02]} 9. Nd5 {[%emt 0:00:18]} Be6 {[%emt 0:00:
30]} 10. Rb1 {[%emt 0:01:40]} f5 {[%emt 0:04:23]} 11. a3 {[%emt 0:03:56]} Nd4 {
[%emt 0:04:40]} 12. Nxd4 {[%emt 0:05:12]} cxd4 {[%emt 0:00:35]} 13. Bg5 {
[%emt 0:02:03]} Bxd5 {[%emt 0:00:03]} 14. cxd5 {[%emt 0:00:01]} h6 {[%emt 0:00:
10]} 15. Bd2 {[%emt 0:00:02]} Qb6 {[%emt 0:01:22]} 16. Qa4 Rac8 {[%emt 0:01:19]
} 17. b4 {[%emt 0:01:10]} a6 {[%emt 0:02:13]} 18. Rbc1 {[%emt 0:00:33]} Qb5 {
[%emt 0:00:24]} 19. Qxb5 {[%emt 0:01:01]} axb5 {[%emt 0:00:01]} 20. Bh3 {
[%emt 0:00:09]} Kf7 {[%emt 0:00:33]} 21. f4 {[%emt 0:00:14]} exf4 {[%emt 0:01:
07]} 22. Bxf4 {[%emt 0:00:19]} g5 {[%emt 0:00:19]} 23. Bxd6 {[%emt 0:00:14]}
Rxc1 {[%emt 0:00:05]} 24. Rxc1 {[%emt 0:00:05]} fxe4 {[%emt 0:00:06]} 25. Be6+
{[%emt 0:00:35]} Ke8 {[%emt 0:00:01]} 26. Rc7 {[%emt 0:00:28]} Bf6 {[%emt 0:00:
24]} 27. Rxb7 {[%emt 0:00:11]} Ng6 {[%emt 0:00:06]} 28. Rb8+ {[%emt 0:00:19]}
Bd8 {[%emt 0:00:01]} 29. Bxf8 {[%emt 0:00:04]} Nxf8 {[%emt 0:00:02]} 30. dxe4 {
[%emt 0:00:07]} Ke7 {[%emt 0:00:03]} 31. e5 {[%emt 0:00:11]} Ng6 {[%emt 0:00:
20]} 32. Rb7+ {[%emt 0:00:05]} Kf8 {[%emt 0:00:04]} 33. Rb8 {[%emt 0:00:25]}
Ke7 {[%emt 0:00:01]} 34. d6+ {[%emt 0:00:11]} Kxe6 {[%emt 0:00:01]} 35. Rxd8 {
[%emt 0:00:01]} Nxe5 {[%emt 0:00:02]} 36. Kf1 Nf7 {[%emt 0:00:45]} 37. Rb8 {
[%emt 0:00:26]} Nxd6 {[%emt 0:00:03]} 38. Rh8 {[%emt 0:00:03]} Nf5 {[%emt 0:00:
02]} 39. Ke2 {[%emt 0:00:04]} Kd5 {[%emt 0:00:22]} 40. Kd3 {[%emt 0:00:03]} Ke5
{[%emt 0:00:05]} 41. Rb8 {[%emt 0:00:27]} Nd6 {[%emt 0:00:05]} 42. Rb6 {
[%emt 0:00:08]} Kd5 {[%emt 0:00:46]} 43. g4 {[%emt 0:00:18]} Ke5 {[%emt 0:00:
05]} 44. Rxd6 {[%emt 0:00:08]} Kxd6 {[%emt 0:00:01]} 45. Kxd4 {[%emt 0:00:02]}
Ke6 {[%emt 0:00:00]} 46. Kc5 {[%emt 0:00:27]} Ke5 {[%emt 0:00:01]} 47. Kxb5 {
[%emt 0:00:02]} Kf4 {[%emt 0:00:01]} 48. a4 {[%emt 0:00:14]} Kxg4 {[%emt 0:00:
02]} 49. a5 {[%emt 0:00:00]} Kh3 {[%emt 0:00:01]} 50. a6 {[%emt 0:00:01]} Kxh2
{[%emt 0:00:02]} 51. a7 {[%emt 0:00:00]} g4 {[%emt 0:00:01]} 52. a8=Q {[%emt 0:
00:05]} h5 {[%emt 0:00:04]} 53. Qh8 {[%emt 0:00:13]} 1-0